[Event "Late-Titled-Tuesday-Blitz-October-24-2023"]
[Site "Chess.com"]
[Date "2023.10.24"]
[Round "6"]
[White "sergiochess83"]
[Black "dimitrisl"]
[Result "1-0"]
[WhiteElo "2870"]
[BlackElo "2600"]
[TimeControl "180+1"]
[EndTime "15:06:25 PDT"]
[Termination "sergiochess83 won on time"]

1. d4 {[%clk 0:02:50.6]} 1... Nf6 {[%clk 0:03:00.1]} 2. c4 {[%clk 0:02:50.4]}
2... e6 {[%clk 0:03:00.5]} 3. Nc3 {[%clk 0:02:51.1]} 3... Bb4 {[%clk 0:02:59.9]}
4. e3 {[%clk 0:02:51.3]} 4... O-O {[%clk 0:02:59.9]} 5. Bd3 {[%clk 0:02:49.9]}
5... d5 {[%clk 0:03:00.2]} 6. cxd5 {[%clk 0:02:49.3]} 6... exd5 {[%clk
0:03:00.3]} 7. Ne2 {[%clk 0:02:48.4]} 7... Re8 {[%clk 0:02:59.2]} 8. Qc2 {[%clk
0:02:48.4]} 8... c6 {[%clk 0:02:57.2]} 9. Bd2 {[%clk 0:02:42.5]} 9... Bd6 {[%clk
0:02:56.1]} 10. f3 {[%clk 0:02:27.2]} 10... a5 {[%clk 0:02:46.9]} 11. g4 {[%clk
0:02:22.6]} 11... Na6 {[%clk 0:02:41.9]} 12. a3 {[%clk 0:02:20.3]} 12... h6
{[%clk 0:02:37.9]} 13. h4 {[%clk 0:02:19.8]} 13... c5 {[%clk 0:02:23.2]} 14. g5
{[%clk 0:02:13.9]} 14... Nh5 {[%clk 0:02:03.6]} 15. O-O-O {[%clk 0:01:53.6]}
15... Nb4 {[%clk 0:01:46.7]} 16. Bh7+ {[%clk 0:01:44.3]} 16... Kh8 {[%clk
0:01:46.5]} 17. Qb1 {[%clk 0:01:45.2]} 17... cxd4 {[%clk 0:01:28.8]} 18. Nxd4
{[%clk 0:01:40.8]} 18... Nc6 {[%clk 0:01:20.1]} 19. gxh6 {[%clk 0:01:15.2]}
19... gxh6 {[%clk 0:01:03.8]} 20. Ncb5 {[%clk 0:01:08.2]} 20... Nxd4 {[%clk
0:00:59.5]} 21. Nxd4 {[%clk 0:01:07.7]} 21... Bd7 {[%clk 0:00:43]} 22. Qd3
{[%clk 0:01:04.8]} 22... Be5 {[%clk 0:00:26.2]} 23. Kb1 {[%clk 0:00:50]} 23...
Rc8 {[%clk 0:00:24.9]} 24. Bf5 {[%clk 0:00:45.6]} 24... Bxf5 {[%clk 0:00:12.5]}
25. Nxf5 {[%clk 0:00:45.4]} 25... Qf6 {[%clk 0:00:11.6]} 26. Nd4 {[%clk
0:00:39.8]} 26... Bxd4 {[%clk 0:00:10.5]} 27. exd4 {[%clk 0:00:39.6]} 27... Ng3
{[%clk 0:00:10]} 28. Rhg1 {[%clk 0:00:33.2]} 28... Qf5 {[%clk 0:00:09.3]} 29.
Bxh6 {[%clk 0:00:19.6]} 29... Qxd3+ {[%clk 0:00:09.5]} 30. Rxd3 {[%clk
0:00:20.5]} 30... Nf5 {[%clk 0:00:10.4]} 31. Bd2 {[%clk 0:00:20.1]} 31... Re2
{[%clk 0:00:10.7]} 32. Bxa5 {[%clk 0:00:18.1]} 32... Rcc2 {[%clk 0:00:09.1]} 33.
Rb3 {[%clk 0:00:17.7]} 33... Rh2 {[%clk 0:00:03.9]} 34. Rxb7 {[%clk 0:00:16.3]}
34... Nxh4 {[%clk 0:00:03.2]} 35. Bc3 {[%clk 0:00:11.7]} 35... Nxf3 {[%clk
0:00:02.1]} 36. Rg3 {[%clk 0:00:11.2]} 1-0

[Event "Late-Titled-Tuesday-Blitz-October-24-2023"]
[Site "Chess.com"]
[Date "2023.10.24"]
[Round "6"]
[White "Binary010"]
[Black "rockstar0902"]
[Result "0-1"]
[WhiteElo "2845"]
[BlackElo "2686"]
[TimeControl "180+1"]
[EndTime "15:06:26 PDT"]
[Termination "rockstar0902 won on time"]

1. e4 {[%clk 0:03:00.9]} 1... e6 {[%clk 0:02:59.4]} 2. d4 {[%clk 0:03:00.5]}
2... d5 {[%clk 0:02:59.5]} 3. Nc3 {[%clk 0:03:01.2]} 3... Nf6 {[%clk 0:02:59.7]}
4. Bd3 {[%clk 0:02:51.9]} 4... c5 {[%clk 0:02:50.2]} 5. exd5 {[%clk 0:02:39.8]}
5... cxd4 {[%clk 0:02:45.5]} 6. Bb5+ {[%clk 0:02:38.8]} 6... Bd7 {[%clk
0:02:45]} 7. Qxd4 {[%clk 0:02:08.3]} 7... Bxb5 {[%clk 0:02:38.4]} 8. Nxb5 {[%clk
0:02:08.6]} 8... Nxd5 {[%clk 0:02:38.7]} 9. Qa4 {[%clk 0:01:51.3]} 9... Nc6
{[%clk 0:02:37.5]} 10. Nf3 {[%clk 0:01:50.9]} 10... a6 {[%clk 0:02:31.3]} 11.
Nbd4 {[%clk 0:01:50.9]} 11... Qa5+ {[%clk 0:02:23.1]} 12. Qxa5 {[%clk 0:01:49]}
12... Nxa5 {[%clk 0:02:24]} 13. O-O {[%clk 0:01:36.1]} 13... Be7 {[%clk
0:02:17.3]} 14. b3 {[%clk 0:01:34.2]} 14... O-O {[%clk 0:02:14.5]} 15. Bd2
{[%clk 0:01:31.4]} 15... Bb4 {[%clk 0:02:00.2]} 16. c4 {[%clk 0:01:00.8]} 16...
Bxd2 {[%clk 0:01:55.1]} 17. cxd5 {[%clk 0:01:00.6]} 17... Bc3 {[%clk 0:01:54.8]}
18. Rac1 {[%clk 0:01:00.3]} 18... Bxd4 {[%clk 0:01:54.2]} 19. Nxd4 {[%clk
0:01:00.3]} 19... Rad8 {[%clk 0:01:37.4]} 20. b4 {[%clk 0:00:27]} 20... Rxd5
{[%clk 0:01:34.5]} 21. Rfd1 {[%clk 0:00:18]} 21... Nc6 {[%clk 0:01:30.3]} 22.
Nxc6 {[%clk 0:00:18.1]} 22... bxc6 {[%clk 0:01:24.4]} 23. Kf1 {[%clk 0:00:18.3]}
23... h6 {[%clk 0:01:16.4]} 24. Rxd5 {[%clk 0:00:18]} 24... cxd5 {[%clk
0:01:17.3]} 25. Rc6 {[%clk 0:00:18.5]} 25... Ra8 {[%clk 0:01:12.2]} 26. Ke2
{[%clk 0:00:16]} 26... Kf8 {[%clk 0:01:09.9]} 27. Kd3 {[%clk 0:00:14.8]} 27...
Ke7 {[%clk 0:01:09.5]} 28. Rc7+ {[%clk 0:00:15.1]} 28... Kf6 {[%clk 0:01:09]}
29. Kd4 {[%clk 0:00:14.2]} 29... Rb8 {[%clk 0:01:07.4]} 30. a3 {[%clk
0:00:14.1]} 30... Rb5 {[%clk 0:01:05.9]} 31. Ra7 {[%clk 0:00:13.2]} 31... e5+
{[%clk 0:01:04]} 32. Kc3 {[%clk 0:00:11]} 32... Rb6 {[%clk 0:01:04.1]} 33. a4
{[%clk 0:00:10.5]} 33... Rc6+ {[%clk 0:01:02.3]} 34. Kd3 {[%clk 0:00:10.1]}
34... Ke6 {[%clk 0:01:02.2]} 35. Rb7 {[%clk 0:00:06.3]} 35... e4+ {[%clk
0:00:59.2]} 36. Ke3 {[%clk 0:00:06]} 36... Rc3+ {[%clk 0:00:57.6]} 37. Kd2
{[%clk 0:00:04.5]} 37... Rc4 {[%clk 0:00:55.5]} 38. Rb6+ {[%clk 0:00:02.9]}
38... Ke5 {[%clk 0:00:55.4]} 39. Rxa6 {[%clk 0:00:03.2]} 39... Rxb4 {[%clk
0:00:55.3]} 40. Ra7 {[%clk 0:00:03.9]} 40... f5 {[%clk 0:00:52.3]} 41. a5 {[%clk
0:00:03.2]} 41... Ra4 {[%clk 0:00:52]} 42. a6 {[%clk 0:00:03.5]} 42... Kd4
{[%clk 0:00:51.1]} 43. Ra8 {[%clk 0:00:02.9]} 43... Ra2+ {[%clk 0:00:50.3]} 44.
Kc1 {[%clk 0:00:02.3]} 44... Kd3 {[%clk 0:00:47.1]} 45. Kb1 {[%clk 0:00:02.3]}
45... Ra5 {[%clk 0:00:47]} 46. Kb2 {[%clk 0:00:02.4]} 46... d4 {[%clk
0:00:47.5]} 47. Kb3 {[%clk 0:00:02.1]} 47... Ke2 {[%clk 0:00:47.7]} 48. Kb4
{[%clk 0:00:02.7]} 48... Ra1 {[%clk 0:00:47.8]} 49. Kb5 {[%clk 0:00:03.4]} 49...
d3 {[%clk 0:00:48.1]} 50. Rd8 {[%clk 0:00:03.9]} 50... d2 {[%clk 0:00:46]} 51.
Kb6 {[%clk 0:00:04.2]} 51... d1=Q {[%clk 0:00:45.7]} 0-1

[Event "Late-Titled-Tuesday-Blitz-October-24-2023"]
[Site "Chess.com"]
[Date "2023.10.24"]
[Round "6"]
[White "rdarruda"]
[Black "louis198"]
[Result "0-1"]
[WhiteElo "2538"]
[BlackElo "2659"]
[TimeControl "180+1"]
[EndTime "15:06:27 PDT"]
[Termination "louis198 won by resignation"]

1. d4 {[%clk 0:01:48.2]} 1... Nf6 {[%clk 0:02:59.5]} 2. Nf3 {[%clk 0:01:48]}
2... d6 {[%clk 0:03:00]} 3. g3 {[%clk 0:01:48.5]} 3... g6 {[%clk 0:03:00.9]} 4.
Bg2 {[%clk 0:01:47.9]} 4... Bg7 {[%clk 0:03:00.9]} 5. O-O {[%clk 0:01:48]} 5...
O-O {[%clk 0:03:01.1]} 6. Nc3 {[%clk 0:01:48.2]} 6... c6 {[%clk 0:03:01.2]} 7.
e4 {[%clk 0:01:48.3]} 7... Nfd7 {[%clk 0:03:01.4]} 8. h3 {[%clk 0:01:47.9]} 8...
e5 {[%clk 0:03:01.5]} 9. Be3 {[%clk 0:01:48]} 9... b6 {[%clk 0:03:00.7]} 10. Qd2
{[%clk 0:01:47.8]} 10... Ba6 {[%clk 0:03:00.1]} 11. Rfe1 {[%clk 0:01:47]} 11...
Re8 {[%clk 0:03:00.2]} 12. Bh6 {[%clk 0:01:45.4]} 12... Bh8 {[%clk 0:02:58.9]}
13. Rad1 {[%clk 0:01:44.3]} 13... Qc7 {[%clk 0:02:58.2]} 14. a4 {[%clk
0:01:38.2]} 14... Nf6 {[%clk 0:02:54.1]} 15. dxe5 {[%clk 0:01:33.4]} 15... dxe5
{[%clk 0:02:54.2]} 16. Qd6 {[%clk 0:01:34]} 16... Qxd6 {[%clk 0:02:50.9]} 17.
Rxd6 {[%clk 0:01:34.9]} 17... Bb7 {[%clk 0:02:48.1]} 18. Bf1 {[%clk 0:01:32.4]}
18... Nbd7 {[%clk 0:02:46]} 19. Red1 {[%clk 0:01:32.3]} 19... Nc5 {[%clk
0:02:45.5]} 20. Re1 {[%clk 0:01:22.3]} 20... a5 {[%clk 0:02:30.5]} 21. Bg5
{[%clk 0:01:21]} 21... Nfd7 {[%clk 0:02:23.7]} 22. Red1 {[%clk 0:01:17.5]} 22...
Nf8 {[%clk 0:02:23.6]} 23. Bc4 {[%clk 0:01:09.4]} 23... Bg7 {[%clk 0:02:21.7]}
24. Bf6 {[%clk 0:01:02.9]} 24... Rac8 {[%clk 0:01:49.9]} 25. Ng5 {[%clk
0:00:57.8]} 25... Rc7 {[%clk 0:01:34.9]} 26. b3 {[%clk 0:00:46.9]} 26... h6
{[%clk 0:01:34.6]} 27. Bxg7 {[%clk 0:00:46.6]} 27... Kxg7 {[%clk 0:01:33.8]} 28.
Nf3 {[%clk 0:00:42.4]} 28... f6 {[%clk 0:01:26.6]} 29. Kg2 {[%clk 0:00:40.8]}
29... Ree7 {[%clk 0:01:23.6]} 30. Rd8 {[%clk 0:00:40.6]} 30... Red7 {[%clk
0:01:22.6]} 31. R8xd7+ {[%clk 0:00:39.6]} 31... Rxd7 {[%clk 0:01:22.7]} 32.
Rxd7+ {[%clk 0:00:39.5]} 32... Nfxd7 {[%clk 0:01:21.4]} 33. Nd2 {[%clk
0:00:39.7]} 33... f5 {[%clk 0:01:20.1]} 34. f3 {[%clk 0:00:39.5]} 34... Kf6
{[%clk 0:01:20.1]} 35. Bg8 {[%clk 0:00:38.6]} 35... Ba6 {[%clk 0:01:19.8]} 36.
Bc4 {[%clk 0:00:37.8]} 36... Bb7 {[%clk 0:01:13.3]} 37. Kf2 {[%clk 0:00:37.5]}
37... h5 {[%clk 0:01:09.2]} 38. h4 {[%clk 0:00:36.8]} 38... Ne6 {[%clk
0:01:03.7]} 39. Bxe6 {[%clk 0:00:36.3]} 39... Kxe6 {[%clk 0:01:04.6]} 40. Nc4
{[%clk 0:00:34.6]} 40... Ba6 {[%clk 0:01:05]} 41. Ne3 {[%clk 0:00:33.8]} 41...
Nc5 {[%clk 0:01:02.3]} 42. exf5+ {[%clk 0:00:33.7]} 42... gxf5 {[%clk
0:01:02.5]} 43. f4 {[%clk 0:00:33.5]} 43... exf4 {[%clk 0:01:01.2]} 44. gxf4
{[%clk 0:00:34.4]} 44... b5 {[%clk 0:00:59.4]} 45. Kf3 {[%clk 0:00:29.1]} 45...
b4 {[%clk 0:00:59.7]} 46. Ncd1 {[%clk 0:00:25.9]} 46... Ne4 {[%clk 0:00:59]} 47.
Nf2 {[%clk 0:00:26]} 47... Nd2+ {[%clk 0:00:54.4]} 48. Kg2 {[%clk 0:00:21.8]}
48... c5 {[%clk 0:00:54.5]} 49. Nd3 {[%clk 0:00:20.4]} 49... Bxd3 {[%clk
0:00:53.8]} 50. cxd3 {[%clk 0:00:21.3]} 50... Nxb3 {[%clk 0:00:54.1]} 51. Nc4
{[%clk 0:00:21.9]} 51... Kd5 {[%clk 0:00:53.5]} 52. Ne3+ {[%clk 0:00:20.5]}
52... Ke6 {[%clk 0:00:52]} 53. Nc4 {[%clk 0:00:20.8]} 53... Nc1 {[%clk
0:00:52.2]} 54. Nxa5 {[%clk 0:00:19.8]} 54... Nxd3 {[%clk 0:00:52.3]} 55. Nc4
{[%clk 0:00:19.9]} 55... b3 {[%clk 0:00:52.2]} 56. a5 {[%clk 0:00:19.9]} 56...
Nb4 {[%clk 0:00:52.5]} 57. Kf3 {[%clk 0:00:19.1]} 57... Kd5 {[%clk 0:00:52.9]}
58. Ne3+ {[%clk 0:00:18.5]} 58... Kc6 {[%clk 0:00:53.2]} 59. Nc4 {[%clk
0:00:18.3]} 59... Kb5 {[%clk 0:00:53.3]} 60. Na3+ {[%clk 0:00:17.6]} 60... Kxa5
{[%clk 0:00:53.3]} 61. Ke3 {[%clk 0:00:18.5]} 61... Nc2+ {[%clk 0:00:51.3]} 62.
Nxc2 {[%clk 0:00:17.4]} 62... bxc2 {[%clk 0:00:52.2]} 63. Kd2 {[%clk 0:00:17.7]}
63... Kb4 {[%clk 0:00:52.5]} 0-1

[Event "Late-Titled-Tuesday-Blitz-October-24-2023"]
[Site "Chess.com"]
[Date "2023.10.24"]
[Round "6"]
[White "Emeraldddd"]
[Black "Gogolev_Artemy"]
[Result "1/2-1/2"]
[WhiteElo "2606"]
[BlackElo "2426"]
[TimeControl "180+1"]
[EndTime "15:06:29 PDT"]
[Termination "Game drawn by repetition"]

1. e4 {[%clk 0:03:00]} 1... c5 {[%clk 0:02:52.8]} 2. Nf3 {[%clk 0:03:00]} 2...
d6 {[%clk 0:02:52.7]} 3. Bb5+ {[%clk 0:03:00.5]} 3... Nd7 {[%clk 0:02:51]} 4.
O-O {[%clk 0:03:00.6]} 4... Nf6 {[%clk 0:02:50.8]} 5. Re1 {[%clk 0:03:00.8]}
5... a6 {[%clk 0:02:43.2]} 6. Bf1 {[%clk 0:03:01.4]} 6... e6 {[%clk 0:02:40]} 7.
c3 {[%clk 0:03:01.8]} 7... b6 {[%clk 0:02:38.8]} 8. d4 {[%clk 0:03:02.7]} 8...
cxd4 {[%clk 0:02:31.2]} 9. cxd4 {[%clk 0:03:03.6]} 9... d5 {[%clk 0:02:28.3]}
10. e5 {[%clk 0:02:40.3]} 10... Ne4 {[%clk 0:02:27.4]} 11. Bd3 {[%clk 0:02:41]}
11... Bb7 {[%clk 0:02:26.8]} 12. Bxe4 {[%clk 0:02:25.4]} 12... dxe4 {[%clk
0:02:27.7]} 13. Bg5 {[%clk 0:02:19.3]} 13... f6 {[%clk 0:02:14]} 14. exf6 {[%clk
0:02:01.3]} 14... gxf6 {[%clk 0:02:13.6]} 15. Bh4 {[%clk 0:01:10.7]} 15... exf3
{[%clk 0:01:36.4]} 16. Rxe6+ {[%clk 0:01:11.6]} 16... Be7 {[%clk 0:01:23.7]} 17.
d5 {[%clk 0:00:42.4]} 17... Nc5 {[%clk 0:01:06.5]} 18. Qxf3 {[%clk 0:00:19.7]}
18... Nxe6 {[%clk 0:01:00.4]} 19. Qh5+ {[%clk 0:00:19.4]} 19... Kd7 {[%clk
0:00:27.7]} 20. dxe6+ {[%clk 0:00:19.5]} 20... Kc7 {[%clk 0:00:26.2]} 21. Bg3+
{[%clk 0:00:14.7]} 21... Bd6 {[%clk 0:00:25.5]} 22. Qf7+ {[%clk 0:00:15.1]}
22... Kb8 {[%clk 0:00:13]} 23. e7 {[%clk 0:00:13.6]} 23... Qd7 {[%clk
0:00:10.6]} 24. Bxd6+ {[%clk 0:00:08.1]} 24... Qxd6 {[%clk 0:00:10.4]} 25. e8=Q+
{[%clk 0:00:06.9]} 25... Rxe8 {[%clk 0:00:10.9]} 26. Qxe8+ {[%clk 0:00:07.8]}
26... Ka7 {[%clk 0:00:11.5]} 27. Qe2 {[%clk 0:00:07.1]} 27... Rg8 {[%clk
0:00:10]} 28. f3 {[%clk 0:00:05.3]} 28... Qd4+ {[%clk 0:00:08.1]} 29. Qf2 {[%clk
0:00:05.5]} 29... Qd1+ {[%clk 0:00:08.2]} 30. Qf1 {[%clk 0:00:06]} 30... Qd4+
{[%clk 0:00:04.6]} 31. Qf2 {[%clk 0:00:06.4]} 31... Qd1+ {[%clk 0:00:04.7]} 32.
Qf1 {[%clk 0:00:06.6]} 32... Qxf3 {[%clk 0:00:05.1]} 33. Qxf3 {[%clk 0:00:06.7]}
33... Bxf3 {[%clk 0:00:05.8]} 34. g3 {[%clk 0:00:07.3]} 34... Rd8 {[%clk
0:00:05.3]} 35. Nc3 {[%clk 0:00:05.5]} 35... Rd2 {[%clk 0:00:06]} 36. Rf1 {[%clk
0:00:04.8]} 36... Rg2+ {[%clk 0:00:05.3]} 37. Kh1 {[%clk 0:00:05.3]} 37... Rf2+
{[%clk 0:00:04.8]} 38. Kg1 {[%clk 0:00:05.5]} 38... Rg2+ {[%clk 0:00:05.4]} 39.
Kh1 {[%clk 0:00:06.2]} 39... Rf2+ {[%clk 0:00:03.7]} 40. Kg1 {[%clk 0:00:06.3]}
40... Rg2+ {[%clk 0:00:04.6]} 1/2-1/2

[Event "Late-Titled-Tuesday-Blitz-October-24-2023"]
[Site "Chess.com"]
[Date "2023.10.24"]
[Round "6"]
[White "karinachess1"]
[Black "JackRodgers"]
[Result "0-1"]
[WhiteElo "2624"]
[BlackElo "2528"]
[TimeControl "180+1"]
[EndTime "15:06:30 PDT"]
[Termination "JackRodgers won by resignation"]

1. d4 {[%clk 0:03:00.9]} 1... Nf6 {[%clk 0:02:59.8]} 2. c4 {[%clk 0:03:00.8]}
2... c5 {[%clk 0:03:00]} 3. d5 {[%clk 0:02:58.4]} 3... e5 {[%clk 0:03:00.2]} 4.
Nc3 {[%clk 0:02:54.7]} 4... d6 {[%clk 0:03:00]} 5. e4 {[%clk 0:02:54.9]} 5...
Be7 {[%clk 0:03:00.2]} 6. Nf3 {[%clk 0:02:55.3]} 6... Nbd7 {[%clk 0:02:58.9]} 7.
Be2 {[%clk 0:02:55.5]} 7... Nf8 {[%clk 0:02:58.8]} 8. O-O {[%clk 0:02:56]} 8...
Ng6 {[%clk 0:02:59.5]} 9. Ne1 {[%clk 0:02:56.4]} 9... O-O {[%clk 0:02:59.5]} 10.
Nd3 {[%clk 0:02:56.7]} 10... a6 {[%clk 0:02:59.4]} 11. a4 {[%clk 0:02:56.3]}
11... h6 {[%clk 0:02:58.8]} 12. a5 {[%clk 0:02:54.2]} 12... Rb8 {[%clk
0:02:58.2]} 13. g3 {[%clk 0:02:45.8]} 13... Bh3 {[%clk 0:02:51]} 14. Re1 {[%clk
0:02:45.9]} 14... Nh7 {[%clk 0:02:47.6]} 15. f4 {[%clk 0:02:39.1]} 15... exf4
{[%clk 0:02:46.7]} 16. gxf4 {[%clk 0:02:34.7]} 16... Bh4 {[%clk 0:02:46.7]} 17.
Be3 {[%clk 0:01:56.5]} 17... Bxe1 {[%clk 0:02:45.1]} 18. Qxe1 {[%clk 0:01:57.4]}
18... Bd7 {[%clk 0:02:38]} 19. f5 {[%clk 0:01:46]} 19... Ne7 {[%clk 0:02:19.2]}
20. Qg3 {[%clk 0:01:43.2]} 20... Bxf5 {[%clk 0:02:10.3]} 21. exf5 {[%clk
0:01:34.6]} 21... Nxf5 {[%clk 0:02:11.2]} 22. Qf2 {[%clk 0:01:34.1]} 22... Nxe3
{[%clk 0:02:10.2]} 23. Qxe3 {[%clk 0:01:35]} 23... Re8 {[%clk 0:02:02.6]} 24.
Qg3 {[%clk 0:01:34.8]} 24... Qg5 {[%clk 0:02:00]} 25. Qxg5 {[%clk 0:01:14.9]}
25... Nxg5 {[%clk 0:02:00.9]} 26. Kf2 {[%clk 0:01:06.7]} 26... Ne4+ {[%clk
0:01:57]} 27. Nxe4 {[%clk 0:01:06.8]} 27... Rxe4 {[%clk 0:01:57.9]} 28. b3
{[%clk 0:01:05]} 28... Rbe8 {[%clk 0:01:50.7]} 29. Re1 {[%clk 0:00:54.3]} 29...
g6 {[%clk 0:01:41.9]} 30. Bf3 {[%clk 0:00:46.7]} 30... Rxe1 {[%clk 0:01:41.2]}
31. Nxe1 {[%clk 0:00:47.6]} 31... f5 {[%clk 0:01:37.2]} 32. Nd3 {[%clk
0:00:40.2]} 32... g5 {[%clk 0:01:36.6]} 33. h3 {[%clk 0:00:40.1]} 33... Kg7
{[%clk 0:01:30.9]} 34. b4 {[%clk 0:00:36]} 34... cxb4 {[%clk 0:01:29]} 35. Nxb4
{[%clk 0:00:36.9]} 35... Kf6 {[%clk 0:01:24.8]} 36. Nd3 {[%clk 0:00:18.1]} 36...
Rc8 {[%clk 0:01:24.2]} 37. Nb2 {[%clk 0:00:18.4]} 37... Ke5 {[%clk 0:01:21.6]}
38. Ke3 {[%clk 0:00:17.3]} 38... f4+ {[%clk 0:01:17.8]} 39. Kd3 {[%clk
0:00:17.7]} 39... Rc5 {[%clk 0:01:17.5]} 40. Kc3 {[%clk 0:00:15.4]} 40... Rxa5
{[%clk 0:01:16.3]} 41. Nd3+ {[%clk 0:00:15.8]} 41... Kf6 {[%clk 0:01:16.4]} 42.
Kd4 {[%clk 0:00:12.8]} 42... b6 {[%clk 0:01:13.2]} 43. Nf2 {[%clk 0:00:11]}
43... Ra3 {[%clk 0:01:10.1]} 44. Ne4+ {[%clk 0:00:11.1]} 44... Ke7 {[%clk
0:01:09.4]} 45. Bg4 {[%clk 0:00:11.6]} 45... a5 {[%clk 0:01:07.9]} 46. Nc3
{[%clk 0:00:06.6]} 46... Ra1 {[%clk 0:01:05.5]} 47. Nb5 {[%clk 0:00:02.9]} 47...
a4 {[%clk 0:00:58]} 48. Kc3 {[%clk 0:00:03.6]} 48... Rh1 {[%clk 0:00:52]} 49.
Nd4 {[%clk 0:00:03]} 49... h5 {[%clk 0:00:48.9]} 50. Bxh5 {[%clk 0:00:03.2]}
50... Rxh3+ {[%clk 0:00:47.9]} 51. Bf3 {[%clk 0:00:02.1]} 51... g4 {[%clk
0:00:46.2]} 52. Kb4 {[%clk 0:00:02.5]} 52... gxf3 {[%clk 0:00:46.3]} 53. Nf5+
{[%clk 0:00:01.9]} 53... Kf6 {[%clk 0:00:46.3]} 0-1

[Event "Late-Titled-Tuesday-Blitz-October-24-2023"]
[Site "Chess.com"]
[Date "2023.10.24"]
[Round "6"]
[White "baag"]
[Black "TanitoluwaAps116"]
[Result "1-0"]
[WhiteElo "2866"]
[BlackElo "2655"]
[TimeControl "180+1"]
[EndTime "15:06:35 PDT"]
[Termination "baag won by resignation"]

1. d4 {[%clk 0:03:00.9]} 1... Nf6 {[%clk 0:02:46.2]} 2. c4 {[%clk 0:03:01.2]}
2... e6 {[%clk 0:02:46.1]} 3. Nc3 {[%clk 0:03:01.8]} 3... Bb4 {[%clk 0:02:45.1]}
4. f3 {[%clk 0:03:02.5]} 4... c5 {[%clk 0:02:42.2]} 5. d5 {[%clk 0:03:02.9]}
5... b5 {[%clk 0:02:39.6]} 6. e4 {[%clk 0:02:59]} 6... bxc4 {[%clk 0:02:38.8]}
7. Bxc4 {[%clk 0:02:57.9]} 7... exd5 {[%clk 0:02:20.9]} 8. Bxd5 {[%clk 0:02:58]}
8... Nxd5 {[%clk 0:02:20.4]} 9. Qxd5 {[%clk 0:02:58.9]} 9... Nc6 {[%clk
0:02:20.6]} 10. Ne2 {[%clk 0:02:56.8]} 10... Ba6 {[%clk 0:02:16.9]} 11. a3
{[%clk 0:02:30.1]} 11... Bxc3+ {[%clk 0:01:32.3]} 12. Nxc3 {[%clk 0:02:31]}
12... O-O {[%clk 0:01:32]} 13. Qxc5 {[%clk 0:02:27.2]} 13... Rc8 {[%clk
0:01:26.2]} 14. Be3 {[%clk 0:02:16.6]} 14... d6 {[%clk 0:01:18.7]} 15. Qg5
{[%clk 0:01:52.5]} 15... Qc7 {[%clk 0:00:44.8]} 16. Kf2 {[%clk 0:01:13.6]} 16...
Ne5 {[%clk 0:00:41.3]} 17. Rhd1 {[%clk 0:01:06.2]} 17... f6 {[%clk 0:00:27.2]}
18. Qg3 {[%clk 0:01:05.8]} 18... Rb8 {[%clk 0:00:25.9]} 19. Kg1 {[%clk
0:00:33.2]} 19... Rxb2 {[%clk 0:00:23.9]} 20. Nd5 {[%clk 0:00:33.9]} 20... Qc2
{[%clk 0:00:20.5]} 21. Bd4 {[%clk 0:00:25.5]} 21... Rb7 {[%clk 0:00:10.1]} 22.
Rac1 {[%clk 0:00:19.4]} 22... Qe2 {[%clk 0:00:08.6]} 23. Nc3 {[%clk 0:00:09.7]}
23... Qc4 {[%clk 0:00:06.2]} 24. Nd5 {[%clk 0:00:09.1]} 24... Qe2 {[%clk
0:00:06.2]} 25. Nf4 {[%clk 0:00:07.5]} 25... Qa2 {[%clk 0:00:05.1]} 26. Ra1
{[%clk 0:00:04.1]} 26... Qf7 {[%clk 0:00:03.9]} 27. Nd5 {[%clk 0:00:03.3]} 27...
Bc4 {[%clk 0:00:03.7]} 28. Ne3 {[%clk 0:00:03.5]} 28... Be6 {[%clk 0:00:03.6]}
29. Rac1 {[%clk 0:00:02.8]} 29... Rd8 {[%clk 0:00:03.8]} 30. f4 {[%clk
0:00:02.7]} 30... Nc4 {[%clk 0:00:02.3]} 31. f5 {[%clk 0:00:02.4]} 31... Nxe3
{[%clk 0:00:01.7]} 32. fxe6 {[%clk 0:00:03.2]} 32... Qxe6 {[%clk 0:00:01.5]} 33.
Qxe3 {[%clk 0:00:04]} 33... Rb3 {[%clk 0:00:01.4]} 34. Rc3 {[%clk 0:00:03.3]}
34... Rb2 {[%clk 0:00:01.6]} 35. Rcd3 {[%clk 0:00:03.2]} 35... Ra2 {[%clk
0:00:02.1]} 36. Bc5 {[%clk 0:00:03]} 36... Rd7 {[%clk 0:00:02.4]} 37. Rxd6
{[%clk 0:00:03.2]} 37... Rxd6 {[%clk 0:00:02.7]} 38. Bxd6 {[%clk 0:00:04.1]}
38... Qc4 {[%clk 0:00:03.2]} 39. Qf3 {[%clk 0:00:02.8]} 39... Qc2 {[%clk
0:00:03.4]} 40. Rf1 {[%clk 0:00:02.2]} 40... Qd2 {[%clk 0:00:03.5]} 41. e5
{[%clk 0:00:02.4]} 41... Qd4+ {[%clk 0:00:03.5]} 42. Kh1 {[%clk 0:00:03]} 42...
Kf7 {[%clk 0:00:03.9]} 43. Qh5+ {[%clk 0:00:03]} 43... Ke6 {[%clk 0:00:04]} 44.
Qe8+ {[%clk 0:00:03.2]} 44... Kd5 {[%clk 0:00:04.2]} 45. Qf7+ {[%clk 0:00:03.9]}
45... Kc6 {[%clk 0:00:04.2]} 46. Qxa2 {[%clk 0:00:04.8]} 1-0